bitfinex-derivatives/quotes_ETHF0:USTF0_20250115
["timestamp","ask_amount","ask_price","bid_price","bid_amount"]
[1736935207563,2.40106016,3200.7,3200.6,46.23725]
[1736935209258,2.40106016,3200.8,3200.7,0.31254]
[1736935209458,2.40106016,3200.8,3200.7,2.78910532]
[1736935209660,2.40106016,3200.8,3200.7,3.45330532]
[1736935210563,2.40106016,3200.9,3200.8,0.31253]
[1736935211157,2.40106016,3200.9,3200.8,0.90873]
[1736935211871,2.40106016,3201.2,3201.1,0.3125]
[1736935212063,2.40106016,3201.2,3201.1,3.5203]
[1736935215670,2.40106016,3201.2,3201.1,4.7833]
[1736935216872,3.6026281,3201.4,3201.2,0.31249]
[1736935216873,2.40106016,3201.3,3201.2,0.31249]
[1736935218659,2.40106016,3201.3,3201.2,2.78905532]
[1736935218971,2.40106016,3201.3,3201.2,4.10855532]
[1736935219165,2.40106016,3201.3,3201.2,44.90855532]
[1736935219661,2.40106016,3201.5,3201.4,0.31247]
[1736935220871,2.40106016,3201.6,3201.5,0.31246]
[1736935221069,2.40106016,3201.6,3201.5,2.78902532]
[1736935222266,4.34536016,3201.7,3201.5,2.47656532]
[1736935222467,4.34536016,3201.7,3201.6,0.31245]
[1736935222771,7.90843126,3201.7,3201.6,0.31245]
[1736935224969,5.5073711,3201.7,3201.6,0.31245]
[1736935226174,4.2319711,3201.7,3201.6,0.31245]
[1736935227575,4.2319711,3201.7,3201.6,41.11245]
[1736935233475,4.2319711,3201.7,3201.6,42.28379045]
[1736935236775,3.5630711,3201.7,3201.6,43.4551309]
[1736935237084,4.80350414,3202.3,3201.6,43.1426809]
[1736935237378,3.9491303,3202.3,3202.2,3.52019]
[1736935237577,2.03881982,3202.3,3202.2,4.78319]
[1736935237784,2.03881982,3202.3,3202.2,47.46589]
[1736935237975,0.83078341,3202.3,3202.2,47.46589]
[1736935238781,1.9099,3202.8,3202.7,0.31234]
[1736935238986,3.2078,3203.5,3202.7,5.5504809]
[1736935239177,1.8789,3203.4,3203.3,0.31228]
[1736935239373,1.8789,3203.4,3203.3,2.78403585]
[1736935239572,3.2078,3203.5,3203.4,0.31227]
[1736935240186,1.8789,3203.9,3203.3,2.47175585]
[1736935240373,1.8789,3203.9,3203.7,2.47175585]
[1736935240782,3.38830809,3203.8,3203.1,3.2078]
[1736935240983,5.67955585,3203.6,3202.7,5.67955585]
[1736935241178,0.31231,3203.1,3202.7,5.67955585]
[1736935241382,1.9031,3203.0,3202.7,5.67955585]
[1736935241682,5.19051009,3203.0,3202.7,5.67955585]
[1736935241980,1.9031,3203.0,3202.7,5.67955585]
[1736935242285,1.9031,3203.0,3202.9,0.31232]
[1736935242683,1.9031,3203.0,3202.8,1.262]
[1736935243184,1.2718,3203.0,3202.8,1.262]
[1736935244377,1.2718,3203.0,3202.8,1.25419117]
[1736935245080,1.2718,3203.0,3202.9,0.31232]
[1736935245782,1.2718,3203.0,3202.3,3.2078]
[1736935245981,3.2078,3202.8,3201.9,2.47175585]
[1736935246286,0.31238,3202.3,3201.8,2.47175585]
[1736935246489,1.9405,3202.2,3201.8,2.78417585]
[1736935246678,1.9405,3202.2,3201.8,2.47175585]
[1736935247482,2.25289,3202.2,3201.8,2.47175585]
[1736935248185,1.9405,3202.2,3201.8,2.47175585]
[1736935248690,1.9405,3202.2,3202.0,0.31241]
[1736935248884,1.9405,3202.2,3201.8,3.73375585]
[1736935249087,1.9405,3202.2,3202.1,2.47175585]
[1736935249287,1.9405,3202.2,3202.1,2.78415585]
[1736935249681,1.9405,3202.2,3202.1,2.47175585]
[1736935249990,1.9405,3202.2,3202.1,2.78415585]
[1736935251085,1.9405,3202.2,3202.1,4.04615585]
[1736935251296,3.2078,3202.4,3202.3,0.31238]
[1736935251488,2.47175585,3203.5,3202.1,4.35325585]
[1736935251489,4.528,3203.1,3202.1,4.35325585]
[1736935251689,4.84031,3203.1,3202.6,0.31235]
[1736935251889,3.61343253,3203.0,3202.7,0.31234]
[1736935252185,3.92574253,3203.0,3202.6,0.31234]
[1736935252391,0.31231,3203.0,3202.8,40.8]
[1736935252984,4.528,3203.1,3202.8,40.8]
[1736935253182,3.52011,3203.1,3202.8,40.8]
[1736935253386,3.2078,3203.6,3202.9,0.6781]
[1736935253587,3.2078,3203.6,3203.5,2.47175585]
[1736935253782,3.2078,3203.6,3203.5,3.73375585]
[1736935254189,3.2078,3203.6,3203.5,4.04601585]
[1736935254490,3.2078,3203.6,3203.5,1.262]
[1736935254893,3.8355,3203.6,3203.5,1.57426]
[1736935255089,3.8355,3203.6,3203.5,1.262]
[1736935255394,3.8355,3203.6,3203.5,1.57426]
[1736935255591,3.8355,3203.6,3203.5,1.262]
[1736935255789,4.14775,3203.6,3203.5,1.262]
[1736935256194,3.8355,3203.6,3202.9,3.14985585]
[1736935256385,0.6151,3203.5,3203.0,0.31231]
[1736935256594,0.3123,3203.2,3203.0,1.57431]
[1736935256886,0.31229,3203.2,3203.0,1.57431]
[1736935257695,0.6175,3203.1,3203.0,1.262]
[1736935257891,0.6175,3203.1,3203.0,1.57431]
[1736935258805,0.9298,3203.1,3203.0,1.57431]
[1736935258991,0.6175,3203.1,3203.0,1.57431]
[1736935259393,4.1376,3203.1,3203.0,1.262]
[1736935260589,0.6175,3203.1,3203.0,1.57431]
[1736935260886,3.8229,3203.5,3203.0,1.262]
[1736935261092,0.6308,3203.4,3203.3,0.31228]
[1736935261394,3.43444434,3203.4,3203.3,0.31228]
[1736935261600,5.98286727,3203.9,3203.8,0.31223]
[1736935261601,3.2078,3203.9,3203.8,0.31223]
[1736935261891,3.2078,3203.9,3203.8,4.04598585]
[1736935262100,3.2078,3203.9,3203.8,44.84598585]
[1736935262496,5.98286727,3204.2,3203.8,44.84598585]
[1736935262497,5.98286727,3204.2,3204.1,0.3122]
[1736935262692,5.98286727,3204.2,3204.0,0.31221]
[1736935262892,5.98286727,3204.2,3204.1,1.262]
[1736935263299,1.2889,3204.3,3204.1,2.47175585]
[1736935263597,0.6581,3204.3,3204.2,0.31219]
[1736935263993,3.2078,3204.4,3204.1,3.73375585]
[1736935264296,3.2078,3204.4,3204.3,0.31219]
[1736935264495,3.2078,3204.4,3203.8,40.8]
[1736935265003,0.31221,3204.1,3203.6,1.57425]
[1736935265292,0.6581,3204.0,3203.7,1.262]
[1736935265497,1.61602,3204.0,3203.6,41.11225]
[1736935265690,1.61602,3204.0,3203.7,1.262]
[1736935266092,1.3038,3204.0,3203.8,0.31223]
[1736935266396,1.3038,3204.0,3203.8,2.78398585]
[1736935266598,0.6581,3204.0,3203.9,0.31222]
[1736935267099,3.2078,3204.4,3204.2,0.31219]
[1736935267300,3.2078,3204.4,3203.8,5.67955585]
[1736935267301,3.2078,3204.4,3204.3,0.31219]
[1736935267498,3.2078,3204.4,3204.3,41.11219]
[1736935268405,3.2078,3204.4,3204.3,41.126457]
[1736935269190,3.2078,3204.4,3204.3,41.1371174]
[1736935269907,3.2078,3204.4,3204.3,41.1477778]
[1736935270798,3.2078,3204.9,3204.3,40.8355878]
[1736935270997,1.2316,3205.0,3204.9,0.31213]
[1736935271198,1.2316,3205.0,3204.8,0.31213]
[1736935271505,1.2316,3205.0,3204.9,0.31213]
[1736935271799,1.2316,3205.0,3204.9,0.3477178]
[1736935272198,3.2078,3205.3,3204.9,0.0355878]
[1736935272199,0.3121,3205.2,3204.9,0.0355878]
[1736935272398,3.2078,3205.3,3205.1,2.47175585]
[1736935272601,3.2078,3205.9,3205.2,1.261]
[1736935272906,3.78905585,3206.2,3205.2,1.261]
[1736935272907,3.2078,3205.5,3205.2,1.57309]
[1736935273093,3.2078,3205.5,3205.2,1.261]
[1736935273295,3.2078,3205.5,3205.0,0.0462482]
[1736935273592,3.2078,3205.1,3204.2,4.4688]
[1736935273792,0.98782,3205.0,3204.7,0.31214]
[1736935273997,3.61039777,3205.0,3204.4,2.47175585]
[1736935274201,0.31214,3204.8,3204.5,1.57316]
[1736935274401,0.31212,3205.0,3204.7,0.31214]
[1736935274597,3.24639581,3205.0,3204.5,1.261]
[1736935274798,3.24639581,3205.0,3204.8,0.31214]
[1736935274996,3.51991,3205.1,3204.6,1.261]
[1736935275199,0.31212,3205.0,3204.7,0.31214]
[1736935275399,3.51991,3205.1,3204.7,1.57314]
[1736935275801,3.51991,3205.1,3204.8,0.31213]
[1736935276308,3.2078,3205.1,3204.8,0.31213]
[1736935276504,0.31212,3205.0,3204.8,0.31213]
[1736935276705,0.31212,3205.0,3204.8,1.57313]
[1736935277213,0.31213,3204.9,3204.7,0.31214]
[1736935277603,3.2078,3205.1,3204.6,1.261]
[1736935278805,0.31214,3204.8,3204.6,1.57315]
[1736935279305,3.2078,3205.1,3204.6,1.261]
[1736935279507,3.51991,3205.1,3204.9,0.31212]
[1736935279706,3.2078,3205.1,3205.0,0.31212]
[1736935282709,3.2078,3205.1,3204.8,2.47175585]
[1736935282909,0.31212,3205.0,3204.9,1.261]
[1736935283216,0.96252,3205.0,3204.9,1.261]
[1736935283511,0.6504,3205.0,3204.9,1.261]
[1736935284118,0.96252,3205.0,3204.9,1.261]
[1736935284412,0.6504,3205.0,3204.9,1.261]
[1736935284616,0.96252,3205.0,3204.8,3.73275585]
[1736935284817,0.6504,3205.0,3204.8,4.04488585]
[1736935285016,0.6504,3205.0,3204.8,3.73275585]
[1736935285206,0.6504,3205.0,3204.5,40.8]
[1736935285414,0.31216,3204.6,3204.5,42.061]
[1736935285610,3.6202299,3204.9,3204.5,42.061]
[1736935285815,0.31214,3204.8,3204.5,42.061]
[1736935286115,0.31216,3204.6,3204.5,40.8]
[1736935288116,0.31216,3204.6,3204.5,41.11217]
[1736935288415,0.31216,3204.6,3204.5,40.8]
[1736935288615,1.3269,3204.7,3204.6,0.31216]
[1736935289611,0.6675,3204.7,3204.6,0.31216]
[1736935290416,3.2078,3205.1,3205.0,0.31212]
[1736935290612,3.2078,3205.1,3205.0,2.78387585]
[1736935290806,3.51991,3205.1,3205.0,0.31212]
[1736935291015,3.51991,3205.1,3205.0,41.11212]
[1736935291215,3.2078,3205.1,3205.0,41.11212]
[1736935291415,3.51991,3205.1,3205.0,40.8]
[1736935292113,0.31214,3204.8,3204.7,1.57315]
[1736935292618,0.31214,3204.8,3204.7,42.061]
[1736935293016,0.31214,3204.8,3204.7,42.37315]
[1736935293519,0.31214,3204.8,3204.7,41.11215]
[1736935293724,0.31214,3204.8,3204.7,40.8]
[1736935296020,0.31214,3204.8,3204.7,41.11215]
[1736935296221,1.3381,3204.9,3204.8,0.31214]
[1736935296423,1.65023,3204.9,3204.8,0.31214]
[1736935297123,0.31214,3204.8,3204.7,40.8]
[1736935297625,0.31214,3204.8,3204.7,41.11215]
[1736935298019,0.31214,3204.8,3204.7,40.8]
[1736935299313,1.34133032,3204.9,3204.7,40.8]
[1736935299519,1.65346032,3204.9,3204.8,0.31214]
[1736935300324,0.31214,3204.8,3204.7,41.11214]
[1736935302225,1.65346032,3204.9,3204.8,0.31214]
[1736935303528,1.34133032,3204.9,3204.7,40.8]
[1736935303733,0.31214,3204.8,3204.7,41.11214]
[1736935304138,0.31214,3204.8,3204.7,40.8]
[1736935304439,3.8789618,3204.8,3204.7,40.8]
[1736935305237,3.5668218,3204.8,3204.5,0.31216]
[1736935305437,3.51996,3204.6,3204.5,0.31216]
[1736935305830,3.51996,3204.6,3204.5,41.11216]
[1736935306934,0.78043,3204.5,3203.8,3.25232585]
[1736935307133,3.2078,3204.2,3203.8,2.47175585]
[1736935307336,3.2078,3204.2,3203.9,0.31221]
[1736935307337,0.31222,3204.0,3203.9,0.31221]
[1736935307536,0.31222,3204.0,3203.9,40.8]
[1736935307743,0.31227,3203.5,3203.4,0.31227]
[1736935308044,0.31227,3203.4,3203.3,4.87691864]
[1736935308336,2.22567,3203.4,3203.3,45.67691864]
[1736935308541,5.67815907,3203.4,3203.3,45.67691864]
[1736935308738,5.67815907,3203.4,3203.3,4.87691864]
[1736935309146,5.36588907,3203.4,3202.8,2.47175585]
[1736935309337,0.31231,3203.1,3202.9,41.11232]
[1736935310240,0.31231,3203.1,3202.9,40.8]
[1736935310549,3.2078,3203.1,3202.9,41.11232]
[1736935310742,3.52011,3203.1,3202.9,40.8]
[1736935311838,3.2078,3203.1,3202.9,40.8]
[1736935312246,3.52011,3203.1,3202.9,40.8]
[1736935312746,3.2078,3203.1,3202.9,40.8]
[1736935313047,3.52011,3203.1,3202.9,40.8]
[1736935314045,0.31241,3202.0,3201.9,0.25638543]
[1736935314345,0.31241,3202.0,3201.7,0.6823]
[1736935314346,3.52021,3202.0,3201.7,0.6823]
[1736935314545,3.2078,3202.0,3201.7,0.6823]
[1736935314941,3.2078,3202.0,3201.8,2.47175585]
[1736935315846,3.2078,3202.0,3201.7,2.0173]
[1736935315847,3.52021,3202.0,3201.7,2.0173]
[1736935316042,3.2078,3202.0,3201.7,1.335]
[1736935316447,3.2078,3202.0,3201.5,2.47175585]
[1736935316448,0.31243,3201.9,3201.5,2.47175585]
[1736935316647,0.31243,3201.8,3201.5,2.47175585]
[1736935316847,0.31244,3201.7,3201.5,2.47175585]
[1736935317654,3.2078,3202.0,3201.5,2.47175585]
[1736935317848,0.31243,3201.8,3201.5,2.47175585]
[1736935318149,3.2078,3202.0,3201.3,0.6511]
[1736935318345,0.31247,3201.4,3201.3,0.6511]
[1736935318542,3.2078,3201.6,3201.1,3.2078]
[1736935318746,0.31249,3201.2,3201.1,3.2078]
[1736935319448,0.31252,3200.9,3200.8,0.6511]
[1736935319654,0.31256,3200.5,3200.3,3.12785585]
[1736935319848,3.2078,3200.6,3200.0,2.47175585]
[1736935320145,0.3126,3200.0,3199.9,40.8]
[1736935320447,5.67955585,3200.1,3199.2,3.2078]
[1736935320648,0.31266,3199.5,3199.2,3.2078]
[1736935320846,2.47175585,3199.8,3199.3,40.8]
[1736935321048,3.44295559,3199.4,3199.3,40.8]
[1736935321248,3.44295559,3199.7,3199.3,45.7435117]
[1736935321460,3.2078,3200.5,3199.9,0.31261]
[1736935321652,3.2078,3200.5,3200.1,3.00178796]
[1736935321961,3.59673646,3200.7,3200.3,0.31257]
[1736935322148,3.59673646,3200.7,3200.2,0.93968]
[1736935322348,3.59673646,3200.7,3200.4,0.31256]
[1736935322749,3.59673646,3200.7,3200.2,0.6271]
[1736935323063,3.2078,3201.0,3200.4,0.31256]
[1736935323358,3.2078,3201.0,3200.6,0.31254]
[1736935323657,3.2078,3201.0,3200.4,3.00178796]
[1736935323953,3.2078,3201.0,3200.6,0.31254]
[1736935325349,3.2078,3201.0,3200.7,0.31254]
[1736935325547,3.2078,3201.4,3201.1,0.31249]
[1736935325747,3.2078,3201.4,3201.0,3.00178796]
[1736935325963,3.2078,3201.4,3201.2,0.31249]
[1736935326153,3.2078,3201.4,3201.3,3.31426796]
[1736935326662,3.2078,3201.8,3201.3,43.80178796]
[1736935326860,3.2078,3201.8,3201.7,0.31244]
[1736935327051,3.2078,3201.8,3201.6,0.31245]
[1736935327250,3.2078,3201.8,3201.5,1.64845]
[1736935327451,3.2078,3201.8,3201.5,1.336]
[1736935327650,3.52023,3201.8,3201.5,1.336]
[1736935327851,0.31244,3201.7,3201.5,1.336]
[1736935328051,3.77562946,3201.7,3201.5,1.336]
[1736935328254,4.11727946,3201.7,3201.5,1.336]
[1736935328460,3.46317946,3201.7,3201.5,1.336]
[1736935328653,3.46317946,3201.7,3201.3,40.8]
[1736935328855,3.77561946,3201.7,3201.3,40.8]
[1736935329052,3.46317946,3201.7,3201.3,40.8]
[1736935329360,3.52023,3201.8,3201.3,40.8]
[1736935329361,3.2078,3201.8,3201.6,0.31245]
[1736935329553,3.2078,3201.8,3201.5,3.00178796]
[1736935329750,3.2078,3201.8,3201.7,0.31244]
[1736935329958,3.2078,3201.8,3201.7,1.64844]
[1736935330265,3.2078,3202.2,3202.1,0.3124]
[1736935330463,3.2078,3202.2,3202.1,3.31418796]
[1736935330957,3.2078,3202.2,3202.1,44.11418796]
[1736935331160,0.99161,3203.1,3202.1,44.0078]
[1736935331456,3.2078,3202.7,3202.2,0.31239]
[1736935331653,0.31235,3202.6,3202.2,0.31239]
[1736935331962,0.31235,3202.6,3202.1,47.00958796]
[1736935331963,3.2078,3202.7,3202.1,47.00958796]
[1736935332259,3.52019,3202.2,3202.1,40.8]
[1736935333462,0.3124,3202.1,3201.8,3.00178796]
[1736935333963,0.3124,3202.1,3201.9,40.8]
[1736935334461,0.31241,3202.0,3201.9,40.8]
[1736935334663,0.31241,3202.0,3201.8,3.00178796]
[1736935334867,3.2078,3202.2,3201.8,3.00178796]
[1736935335053,0.3124,3202.1,3201.9,40.8]
[1736935335455,3.2078,3202.2,3202.0,0.31241]
[1736935335760,3.2078,3202.2,3201.9,41.11241]
[1736935336363,3.52019,3202.2,3201.9,40.8]
[1736935336866,3.5202,3202.2,3201.9,40.8]
[1736935337761,3.2078,3202.2,3201.9,40.8]
[1736935338364,3.2078,3202.2,3201.9,41.11241]
[1736935338567,3.2078,3202.2,3201.9,41.11242]
[1736935338766,3.2078,3202.2,3202.1,3.00178796]
[1736935338966,3.2078,3202.2,3202.1,3.31418796]
[1736935341563,3.2078,3202.2,3202.1,2.78604359]
[1736935342257,3.2078,3202.2,3202.1,2.47364359]
[1736935343161,3.2078,3202.2,3202.1,2.78604359]
[1736935344162,3.2078,3202.2,3202.1,2.47364359]
[1736935344362,3.2078,3202.2,3202.1,2.78604359]
[1736935345265,6.80453646,3203.6,3202.2,0.78097]
[1736935345466,1.8978,3203.5,3203.1,0.3123]
[1736935345768,3.59673646,3203.6,3203.5,0.31226]
[1736935346468,3.59673646,3203.6,3203.5,41.11226]
[1736935346664,3.2078,3204.0,3203.9,0.31222]
[1736935346967,3.2078,3204.4,3204.3,0.31219]
[1736935347167,3.2078,3204.4,3204.3,2.47364359]
[1736935347363,3.2078,3204.4,3204.3,3.30582194]
[1736935348067,3.2078,3204.4,3204.3,44.10582194]
[1736935349664,0.00323032,3204.9,3204.8,0.31214]
[1736935349863,0.00323032,3204.9,3204.8,4.67777194]
[1736935351166,0.00323032,3204.9,3204.8,45.47777194]
[1736935351466,0.00323032,3204.9,3204.8,46.12197194]
[1736935352867,0.00323032,3204.9,3204.3,0.57308327]
[1736935352868,0.00323032,3204.9,3204.5,1.371]
[1736935353071,0.31215,3204.7,3204.5,1.371]
[1736935353365,0.31219,3204.3,3204.2,1.371]
[1736935353777,3.8522,3204.6,3203.7,4.36463194]
[1736935353969,0.31222,3204.0,3203.7,4.36463194]
[1736935354268,0.31225,3203.6,3203.5,1.371]
[1736935354568,3.2078,3203.6,3203.5,1.371]
[1736935354770,3.2078,3203.6,3203.4,2.99363194]
[1736935356163,3.52006,3203.6,3203.4,2.99363194]
[1736935356573,3.2078,3203.6,3203.4,2.99363194]
[1736935356774,0.31226,3203.5,3203.4,2.99363194]
[1736935357173,3.2078,3203.6,3203.4,2.99363194]
[1736935357374,1.56633,3203.9,3203.4,3.30590194]
[1736935357576,0.31223,3203.9,3203.4,3.30590194]
[1736935357877,3.75168171,3203.8,3203.5,1.371]
[1736935358179,3.2078,3204.0,3203.5,1.371]
[1736935358370,0.31223,3203.9,3203.5,1.68326]
[1736935359174,3.52002,3204.0,3203.5,0.31226]
[1736935359372,0.6558,3204.3,3203.7,2.99363194]
[1736935359577,0.31219,3204.2,3203.7,3.30587194]
[1736935359769,0.6558,3204.3,3203.5,1.371]
[1736935359972,0.31222,3204.0,3203.5,1.68326]
[1736935360171,3.2078,3203.9,3203.8,40.8]
[1736935362177,3.2078,3203.9,3203.8,41.11223]
[1736935362379,3.2078,3204.3,3204.1,0.3122]
[1736935362582,3.51999,3204.3,3204.1,2.99363194]
[1736935362970,3.51999,3204.3,3204.0,0.31221]
[1736935363176,3.2078,3204.3,3203.8,47.00143194]
[1736935363380,3.2078,3204.3,3204.1,0.3122]
[1736935363682,3.2078,3204.3,3203.8,47.00143194]
[1736935363683,3.2078,3204.3,3204.2,0.31219]
[1736935364674,3.2078,3204.3,3204.2,1.68319]
[1736935365078,3.2078,3204.7,3204.2,2.15148]
[1736935365291,3.2078,3204.7,3204.6,3.30579194]
[1736935365478,3.2078,3204.7,3204.6,0.31216]
[1736935366185,3.2078,3204.7,3204.6,40.8]
[1736935366779,3.2078,3204.7,3204.6,41.11216]
[1736935366986,3.2078,3204.7,3204.6,40.8]
[1736935367578,3.51995,3204.7,3204.6,40.8]
[1736935367780,3.2078,3204.7,3204.4,1.371]
[1736935367975,0.31217,3204.5,3204.4,1.371]
[1736935368385,3.51995,3204.7,3204.4,42.48317]
[1736935368586,3.51995,3204.7,3204.4,42.171]
[1736935368587,3.2078,3204.7,3204.4,42.171]
[1736935368781,3.51995,3204.7,3204.5,0.31216]
[1736935368979,3.51995,3204.7,3204.4,42.171]
[1736935368980,3.2078,3204.7,3204.6,0.31216]
[1736935369287,0.31216,3204.6,3204.4,42.171]
[1736935369683,3.9294,3204.7,3204.4,42.171]
[1736935369885,0.31217,3204.5,3204.4,42.171]
[1736935370085,0.31218,3204.4,3204.1,1.6832]
[1736935370287,0.7062,3204.4,3204.2,0.31219]
[1736935370483,0.7062,3204.4,3204.3,40.8]
[1736935370687,1.01838,3204.4,3204.3,40.8]
[1736935373485,0.70907139,3204.4,3204.3,41.11219]
[1736935374786,0.00287139,3204.4,3204.3,41.11219]
[1736935375490,0.00287139,3204.4,3204.3,43.58253921]
[1736935376291,0.00287139,3204.4,3204.3,41.11219]
[1736935376590,0.31505139,3204.4,3204.3,40.8]
[1736935377092,0.31505139,3204.4,3204.3,41.11219]
[1736935378489,3.76179224,3204.4,3204.3,40.8]
[1736935378693,3.76179224,3204.4,3203.8,1.37]
[1736935378694,3.44961224,3204.4,3203.8,1.37]
[1736935378887,3.52002,3203.9,3203.8,0.31223]
[1736935379082,3.52002,3203.9,3203.8,41.11223]
[1736935379495,3.52002,3203.9,3203.8,40.8]
[1736935380689,0.31224,3203.7,3203.6,0.31225]
[1736935381191,6.71332007,3203.9,3203.6,40.8]
[1736935381394,0.7029,3204.1,3203.8,2.47034921]
[1736935381589,0.99309,3204.2,3204.1,0.3122]
[1736935382093,0.6809,3204.2,3203.8,2.47034921]
[1736935382394,0.6809,3204.2,3203.9,0.31221]
[1736935382395,0.31222,3204.0,3203.9,0.31221]
[1736935382598,3.52001,3204.1,3204.0,0.31221]
[1736935382896,3.2078,3204.1,3204.0,0.31221]
[1736935385687,3.2078,3204.1,3204.0,1.68221]
[1736935386293,0.31219,3204.3,3204.1,0.3122]
[1736935386489,0.00287139,3204.4,3204.1,2.78254921]
[1736935386693,0.31219,3204.2,3204.1,2.47034921]
[1736935386895,0.3122,3204.1,3204.0,1.68221]
[1736935387097,3.2078,3204.1,3204.0,1.68221]
[1736935388494,3.2078,3204.1,3204.0,1.37]
[1736935388897,3.52,3204.1,3204.0,1.37]
[1736935391696,3.52,3204.1,3204.0,1.68221]
[1736935391894,3.2078,3204.1,3204.0,1.68221]
[1736935392299,3.52,3204.1,3204.0,1.68221]
[1736935392797,3.59673646,3204.2,3204.1,0.3122]
[1736935392996,3.59673646,3204.2,3204.1,2.78254921]
[1736935394103,3.59664199,3204.4,3204.3,0.31219]
[1736935394303,3.59664199,3204.4,3204.3,41.11219]
[1736935394497,3.59664199,3204.4,3204.3,46.11219]
[1736935394704,4.80147697,3204.7,3204.6,0.31216]
[1736935394904,4.80147697,3204.7,3204.6,2.78250921]
[1736935395199,4.80147697,3204.7,3204.6,7.78250921]
[1736935395701,3.2078,3205.6,3205.1,0.78027]
[1736935395903,3.2078,3205.6,3205.4,0.31207]
[1736935396293,0.31207,3205.5,3205.2,1.37]
[1736935396494,3.2078,3205.6,3205.2,1.37]
[1736935396702,0.31209,3205.3,3205.2,1.37]
[1736935396900,3.74207472,3205.4,3205.2,1.37]
[1736935397101,3.2078,3205.6,3205.2,1.37]
[1736935397502,0.31209,3205.3,3205.2,1.37]
[1736935400209,3.39919637,3205.5,3205.2,1.37]
[1736935400507,3.51986,3205.6,3205.5,0.31207]
[1736935402110,0.31209,3205.3,3205.2,1.37]
[1736935402511,0.31209,3205.3,3205.2,1.6821]
[1736935403013,7.33252328,3205.6,3204.8,2.47034921]
[1736935403309,0.31216,3204.7,3204.6,0.31214]
[1736935403502,0.31219,3204.4,3204.3,0.31218]
[1736935403710,3.51998,3204.4,3204.3,0.31219]
[1736935404408,3.2078,3204.4,3204.3,0.31219]
[1736935404716,3.51998,3204.4,3204.3,0.31219]
[1736935405106,3.2078,3204.4,3204.3,0.31219]
[1736935405404,1.3628,3204.6,3204.5,0.31217]
[1736935405604,0.6724,3204.6,3204.5,0.31217]
[1736935405807,9.20877244,3204.8,3204.5,40.8]
[1736935406005,0.6568,3204.7,3204.5,40.8]
[1736935406213,0.31216,3204.6,3204.5,40.8]
[1736935406413,0.6515,3204.6,3204.5,40.8]
[1736935406707,0.6568,3204.7,3204.6,0.31216]
[1736935406898,3.2078,3204.8,3204.7,0.31215]
[1736935407105,3.2078,3204.8,3204.7,1.67115]
[1736935407307,6.65777244,3205.0,3204.7,1.359]
[1736935407507,0.6568,3205.0,3204.9,0.31213]
[1736935407907,9.20877244,3205.2,3205.1,0.31211]
[1736935408114,6.00097244,3205.2,3205.1,0.31211]
[1736935408314,6.00097244,3205.2,3205.1,41.11211]
[1736935408611,3.8646,3205.6,3205.5,0.31207]
[1736935409205,3.2078,3205.6,3205.5,0.31207]
[1736935410308,3.2078,3205.6,3205.5,1.67107]
[1736935417907,0.31202,3206.0,3205.5,1.359]
[1736935418315,0.31202,3206.0,3205.7,0.31205]
[1736935418719,0.31202,3206.0,3205.5,1.359]
[1736935419214,0.31202,3206.0,3205.8,0.31204]
[1736935419418,0.31202,3206.0,3205.7,0.31205]
[1736935419606,0.31202,3206.0,3205.8,0.31204]
[1736935419811,0.31202,3206.0,3205.7,0.31204]
[1736935420115,0.31203,3205.9,3205.7,0.31204]
[1736935420316,0.6853,3206.1,3205.5,1.359]
[1736935420514,0.31202,3206.0,3205.8,0.31204]
[1736935420920,0.6853,3206.1,3205.5,1.359]
[1736935421118,0.31202,3206.0,3205.5,1.359]
[1736935421320,0.31202,3206.0,3205.8,0.31203]
[1736935421613,3.2078,3206.6,3205.9,2.99346717]
[1736935421820,0.31198,3206.5,3206.2,0.312]
[1736935422012,0.31198,3206.5,3206.3,40.8]
[1736935422314,0.31198,3206.4,3206.3,40.8]
[1736935422509,5.2744,3206.6,3206.3,40.8]
[1736935422715,0.31198,3206.5,3206.3,41.11199]
[1736935423114,0.31198,3206.4,3206.3,40.8]
[1736935424122,0.77997,3206.4,3205.8,1.358]
[1736935424318,3.51982,3206.0,3205.9,0.31202]
[1736935424616,3.2078,3206.0,3205.9,41.11202]
[1736935425525,3.9298,3206.0,3205.9,41.11202]
[1736935426623,3.2078,3206.0,3205.9,44.10548717]
[1736935427317,3.2078,3206.0,3205.9,43.57964627]
[1736935429520,3.2078,3206.0,3205.9,2.77965627]
[1736935431426,3.2078,3206.0,3205.9,2.46762627]
[1736935431725,0.31203,3205.9,3205.8,40.8]
[1736935432023,2.0688,3205.9,3205.8,41.11204]
[1736935433928,0.6854,3205.9,3205.8,41.11204]
[1736935435138,0.6854,3205.9,3205.8,40.8]
[1736935435434,0.6854,3205.9,3205.8,41.11204]
[1736935442726,0.7008,3206.4,3206.3,0.31199]
[1736935442937,0.7008,3206.4,3206.3,4.12561627]
[1736935443333,0.7008,3206.4,3206.3,44.92561627]
[1736935443835,0.7202,3206.6,3206.3,47.82142627]
[1736935444033,0.7202,3206.6,3206.5,0.31197]
[1736935447635,0.31198,3206.5,3206.3,47.82142627]
[1736935447837,0.31198,3206.4,3206.3,3.81362627]
[1736935448031,0.6967,3206.4,3206.3,4.12561627]
[1736935450044,0.6967,3206.4,3206.3,44.92561627]
[1736935453544,0.7202,3206.6,3206.5,0.31197]
[1736935456243,3.2078,3206.8,3206.7,0.31195]
[1736935456537,0.6742,3207.0,3206.9,0.31193]
[1736935457039,0.704,3207.1,3206.7,2.46762627]
[1736935457339,0.704,3207.1,3207.0,2.77954627]
[1736935457544,0.704,3207.1,3207.0,4.12554627]